fUST/lending_fUST_20250210
["ID","MTS","AMOUNT","RATE_DAILY","PERIOD"]
[352594984,1739185852323,-500.0,0.00011506,2]
[352594985,1739185852333,-500.0,0.00011506,2]
[352594986,1739185852343,-500.0,0.00011506,2]
[352594987,1739185852353,-500.0,0.00011506,2]
[352594988,1739185852362,-500.0,0.00011506,2]
[352594989,1739185852372,-500.0,0.00011506,2]
[352594990,1739185852382,-500.0,0.00011506,2]
[352594991,1739185852391,-500.0,0.00011506,2]
[352594992,1739185852400,-500.0,0.00011506,2]
[352594993,1739185852409,-622.69,0.00011506,2]
[352594994,1739185852420,-340.17337902,0.00011506,2]
[352594995,1739185852429,-500.0,0.00011506,2]
[352594996,1739185852439,-500.0,0.00011506,2]
[352594997,1739185852447,-500.0,0.00011506,2]
[352594998,1739185852456,-651.86,0.00011506,2]
[352594999,1739185852466,-500.0,0.00011506,2]
[352595000,1739185852475,-500.0,0.00011506,2]
[352595001,1739185852484,-500.0,0.00011506,2]
[352595002,1739185852493,-500.0,0.00011506,2]
[352595003,1739185852503,-203.06655434,0.00011506,2]
[352595004,1739185852512,-500.0,0.00011506,2]
[352595005,1739185852522,-500.0,0.00011506,2]
[352595006,1739185852532,-500.0,0.00011506,2]
[352595007,1739185852542,-943.96,0.00011506,2]
[352595008,1739185852551,-500.0,0.00011506,2]
[352595009,1739185852560,-500.0,0.00011506,2]
[352595010,1739185852570,-500.0,0.00011506,2]
[352595011,1739185852579,-500.0,0.00011506,2]
[352595012,1739185852588,-500.0,0.00011506,2]
[352595013,1739185852598,-500.0,0.00011506,2]
[352595014,1739185852607,-500.0,0.00011506,2]
[352595015,1739185852616,-500.0,0.00011506,2]
[352595016,1739185852625,-3719.71,0.00011506,2]
[352595017,1739185852635,-500.0,0.00011506,2]
[352595018,1739185852644,-7203.65,0.00011506,2]
[352595019,1739185852653,-1632.27,0.00011506,2]
[352595020,1739185852663,-500.0,0.00011506,2]
[352595021,1739185852673,-468.83,0.00011506,2]
[352595022,1739185852682,-910.39,0.00011506,2]
[352595023,1739185852692,-500.0,0.00011506,2]
[352595024,1739185852701,-870.71,0.00011506,2]
[352595025,1739185852710,-500.0,0.00011506,2]
[352595026,1739185852719,-1859.96,0.00011506,2]
[352595027,1739185852729,-500.0,0.00011506,2]
[352595028,1739185852738,-633.35,0.00011506,2]
[352595029,1739185852747,-500.0,0.00011506,2]
[352595030,1739185852757,-500.0,0.00011506,2]
[352595031,1739185852766,-500.0,0.00011506,2]
[352595032,1739185852775,-170.7404736,0.00011506,2]
[352595033,1739185852785,-500.0,0.00011506,2]
[352595034,1739185852794,-596.76,0.00011506,2]
[352595035,1739185852803,-2156.94,0.00011506,2]
[352595036,1739185852812,-1204.72,0.00011506,2]
[352595037,1739185852822,-702.74,0.00011506,2]
[352595038,1739185852831,-500.0,0.00011506,2]
[352595039,1739185852840,-1606.0,0.00011506,2]
[352595040,1739185852850,-3587.43,0.00011506,2]
[352595041,1739185852859,-851.67,0.00011506,2]
[352595042,1739185852868,-7968.06,0.00011506,2]
[352595043,1739185852878,-625.76,0.00011506,2]
[352595044,1739185852887,-500.0,0.00011506,2]
[352595045,1739185852896,-20256.1,0.00011506,2]
[352595046,1739185852906,-628.55,0.00011506,2]
[352595047,1739185852916,-500.0,0.00011506,2]
[352595048,1739185852925,-549.82,0.00011506,2]
[352595049,1739185852935,-863.77,0.00011506,2]
[352595050,1739185852944,-500.0,0.00011506,2]
[352595051,1739185852954,-1590.18,0.00011506,2]
[352595052,1739185852963,-500.0,0.00011506,2]
[352595053,1739185852973,-500.0,0.00011506,2]
[352595054,1739185852982,-500.0,0.00011506,2]
[352595055,1739185852992,-500.0,0.00011506,2]
[352595056,1739185853003,-859.37,0.00011506,2]
[352595057,1739185853011,-1324.23,0.00011506,2]
[352595058,1739185853021,-500.0,0.00011506,2]
[352595059,1739185853031,-640.35,0.00011506,2]
[352595060,1739185853040,-500.0,0.00011506,2]
[352595061,1739185853050,-500.0,0.00011506,2]
[352595062,1739185853059,-500.0,0.00011506,2]
[352595063,1739185853069,-500.0,0.00011506,2]
[352595064,1739185853078,-500.0,0.00011506,2]
[352595065,1739185853087,-823.04,0.00011506,2]
[352595066,1739185853097,-500.0,0.00011506,2]
[352595067,1739185853107,-500.0,0.00011506,2]
[352595068,1739185853116,-543.76,0.00011506,2]
[352595069,1739185853125,-500.0,0.00011506,2]
[352595070,1739185853134,-774.45,0.00011506,2]
[352595071,1739185853143,-500.0,0.00011506,2]
[352595072,1739185853154,-500.0,0.00011506,2]
[352595073,1739185853163,-986.58,0.00011506,2]
[352595074,1739185853173,-500.0,0.00011506,2]
[352595075,1739185853182,-500.0,0.00011506,2]
[352595076,1739185853191,-500.0,0.00011506,2]
[352595077,1739185853200,-500.0,0.00011506,2]
[352595078,1739185853209,-500.0,0.00011506,2]
[352595079,1739185853220,-1626.49,0.00011506,2]
[352595080,1739185853232,-761.33,0.00011506,2]
[352595081,1739185853249,-500.0,0.00011506,2]
[352595082,1739185853264,-2142.2,0.00011506,2]
[352595083,1739185853275,-583.3,0.00011506,2]
[352595084,1739185853284,-811.42,0.00011506,2]
[352595085,1739185853293,-500.0,0.00011506,2]
[352595086,1739185853303,-500.0,0.00011506,2]
[352595087,1739185853312,-500.0,0.00011521,2]
[352595088,1739185853322,-1000.0,0.00011521,2]
[352595089,1739185853336,-1000.63881708,0.00011521,2]
[352595090,1739185853345,-500.0,0.00011521,2]
[352595091,1739185853355,-500.0,0.00011521,2]
[352595092,1739185853364,-278.54427922,0.00011521,2]
[352595093,1739185853377,-1031.26523494,0.00011521,2]
[352595094,1739185853387,-4470.09776172,0.00011588,2]
[352595095,1739185853396,-151.0,0.000116,2]
[352595096,1739185853406,-500.0,0.00011643,2]
[352595097,1739185853415,-500.0,0.00011643,2]
[352595098,1739185853426,-500.0,0.00011643,2]
[352595099,1739185853436,-500.0,0.00011643,2]
[352595100,1739185853446,-500.0,0.00011643,2]
[352595101,1739185853457,-500.0,0.00011643,2]
[352595102,1739185853468,-500.0,0.00011643,2]
[352595103,1739185853478,-301.29136698,0.00011643,2]
[352595104,1739185853488,-500.0,0.00011643,2]
[352595105,1739185853498,-401.98145756,0.00011643,2]
[352595106,1739185853508,-500.0,0.00011643,2]
[352595107,1739185853518,-500.0,0.00011643,2]
[352595108,1739185853528,-758.83,0.00011643,2]
[352595109,1739185853537,-500.0,0.00011643,2]
[352595110,1739185853547,-584.02,0.00011643,2]
[352595111,1739185853556,-500.0,0.00011643,2]
[352595112,1739185853566,-500.0,0.00011643,2]
[352595113,1739185853575,-500.0,0.00011643,2]
[352595114,1739185853585,-500.0,0.00011643,2]
[352595115,1739185853594,-500.0,0.00011643,2]
[352595116,1739185853603,-500.0,0.00011643,2]
[352595117,1739185853613,-572.79,0.00011643,2]
[352595118,1739185853622,-500.0,0.00011643,2]
[352595119,1739185853632,-500.0,0.00011643,2]
[352595120,1739185853641,-500.0,0.00011643,2]
[352595121,1739185853650,-500.0,0.00011643,2]
[352595122,1739185853660,-500.0,0.00011643,2]
[352595123,1739185853670,-565.10430354,0.00011643,2]
[352595124,1739185853680,-500.0,0.00011643,2]
[352595125,1739185853689,-500.0,0.00011643,2]
[352595126,1739185853699,-622.69,0.00011643,2]
[352595127,1739185853708,-500.0,0.00011643,2]
[352595128,1739185853718,-500.0,0.00011643,2]
[352595129,1739185853727,-423.70414032,0.00011643,2]
[352595130,1739185853736,-651.86,0.00011643,2]
[352595131,1739185853746,-500.0,0.00011643,2]
[352595132,1739185853755,-500.0,0.00011643,2]
[352595133,1739185853764,-500.0,0.00011643,2]
[352595134,1739185853773,-500.0,0.00011643,2]
[352595135,1739185853782,-500.0,0.00011643,2]
[352595136,1739185853792,-500.0,0.00011643,2]
[352595137,1739185853801,-500.0,0.00011643,2]
[352595138,1739185853810,-943.96,0.00011643,2]
[352595139,1739185853819,-500.0,0.00011643,2]
[352595140,1739185853828,-500.0,0.00011643,2]
[352595141,1739185853844,-503.27434851,0.00011643,2]
[352595142,1739185853853,-500.0,0.00011643,2]
[352595143,1739185853863,-500.0,0.00011643,2]
[352595144,1739185853873,-500.0,0.00011643,2]
[352595145,1739185853883,-500.0,0.00011643,2]
[352595146,1739185853893,-500.0,0.00011643,2]
[352595147,1739185853903,-3719.71,0.00011643,2]
[352595148,1739185853913,-500.0,0.00011643,2]
[352595149,1739185853922,-7203.65,0.00011643,2]
[352595150,1739185853932,-1632.27,0.00011643,2]
[352595151,1739185853941,-500.0,0.00011643,2]
[352595152,1739185853950,-910.39,0.00011643,2]
[352595153,1739185853959,-500.0,0.00011643,2]
[352595154,1739185853969,-870.71,0.00011643,2]
[352595155,1739185853978,-500.0,0.00011643,2]
[352595156,1739185853989,-1859.96,0.00011643,2]
[352595157,1739185853998,-500.0,0.00011643,2]
[352595158,1739185854008,-633.35,0.00011643,2]
[352595159,1739185854017,-500.0,0.00011643,2]
[352595160,1739185854027,-500.0,0.00011643,2]
[352595161,1739185854036,-500.0,0.00011643,2]
[352595162,1739185854045,-500.0,0.00011643,2]
[352595163,1739185854054,-596.76,0.00011643,2]
[352595164,1739185854063,-2156.94,0.00011643,2]
[352595165,1739185854072,-1204.72,0.00011643,2]
[352595166,1739185854082,-702.74,0.00011643,2]
[352595167,1739185854091,-500.0,0.00011643,2]
[352595168,1739185854100,-1606.0,0.00011643,2]
[352595169,1739185854109,-3587.43,0.00011643,2]
[352595170,1739185854118,-851.67,0.00011643,2]
[352595171,1739185854127,-7968.06,0.00011643,2]
[352595172,1739185854136,-625.76,0.00011643,2]
[352595173,1739185854146,-20256.1,0.00011643,2]
[352595174,1739185854155,-628.55,0.00011643,2]
[352595175,1739185854164,-500.0,0.00011643,2]
[352595176,1739185854173,-549.82,0.00011643,2]
[352595177,1739185854183,-863.77,0.00011643,2]
[352595178,1739185854192,-500.0,0.00011643,2]
[352595179,1739185854201,-1590.18,0.00011643,2]
[352595180,1739185854210,-500.0,0.00011643,2]
[352595181,1739185854219,-500.0,0.00011643,2]
[352595182,1739185854228,-500.0,0.00011643,2]
[352595183,1739185854239,-500.0,0.00011643,2]
[352595184,1739185854250,-859.37,0.00011643,2]
[352595185,1739185854259,-1324.23,0.00011643,2]
[352595186,1739185854268,-500.0,0.00011643,2]
[352595187,1739185854278,-640.35,0.00011643,2]
[352595188,1739185854287,-500.0,0.00011643,2]
[352595189,1739185854296,-258.34,0.00011643,2]
[352595190,1739185854305,-500.0,0.00011643,2]
[352595191,1739185854314,-500.0,0.00011643,2]
[352595192,1739185854324,-823.04,0.00011643,2]
[352595193,1739185854333,-500.0,0.00011643,2]
[352595194,1739185854345,-500.0,0.00011643,2]
[352595195,1739185854355,-543.76,0.00011643,2]
[352595196,1739185854364,-500.0,0.00011643,2]
[352595197,1739185854374,-774.45,0.00011643,2]
[352595198,1739185854383,-500.0,0.00011643,2]
[352595199,1739185854395,-986.58,0.00011643,2]
[352595200,1739185854404,-254.66862441,0.00011643,2]
[352595201,1739185854413,-502.71504357,0.00011643,2]
[352595202,1739185854424,-500.0,0.00011643,2]
[352595203,1739185854433,-500.0,0.00011643,2]
[352595204,1739185854442,-500.0,0.00011643,2]
[352595205,1739185854452,-500.0,0.00011643,2]
[352595206,1739185854461,-1626.49,0.00011643,2]
[352595207,1739185854470,-761.33,0.00011643,2]
[352595208,1739185854480,-500.0,0.00011643,2]
[352595209,1739185854489,-2142.2,0.00011643,2]
[352595210,1739185854499,-583.3,0.00011643,2]
[352595211,1739185854508,-811.42,0.00011643,2]
[352595212,1739185854517,-500.0,0.00011643,2]
[352595213,1739185854625,-500.0,0.00011643,2]
[352595214,1739185854635,-150.56066039,0.00011655,2]
[352595215,1739185854644,-1000.0,0.0001168,2]
[352595216,1739185854654,-319.81926911,0.0001168,2]
[352595217,1739185854663,-500.0,0.0001178,2]
[352595218,1739185854672,-500.0,0.0001178,2]
[352595219,1739185854682,-500.0,0.0001178,2]
[352595220,1739185854691,-500.0,0.0001178,2]
[352595221,1739185854701,-500.0,0.0001178,2]
[352595222,1739185854713,-500.0,0.0001178,2]
[352595223,1739185854722,-500.0,0.0001178,2]
[352595224,1739185854731,-500.0,0.0001178,2]
[352595225,1739185854741,-500.0,0.0001178,2]
[352595226,1739185854751,-500.0,0.0001178,2]
[352595227,1739185854761,-758.83,0.0001178,2]
[352595228,1739185854771,-500.0,0.0001178,2]
[352595229,1739185854780,-584.02,0.0001178,2]
[352595230,1739185854789,-500.0,0.0001178,2]
[352595231,1739185854799,-500.0,0.0001178,2]
[352595232,1739185854808,-500.0,0.0001178,2]
[352595233,1739185854817,-500.0,0.0001178,2]
[352595234,1739185854826,-500.0,0.0001178,2]
[352595235,1739185854835,-500.0,0.0001178,2]
[352595236,1739185854844,-572.79,0.0001178,2]
[352595237,1739185854853,-500.0,0.0001178,2]
[352595238,1739185854863,-500.0,0.0001178,2]
[352595239,1739185854871,-500.0,0.0001178,2]
[352595240,1739185854880,-500.0,0.0001178,2]
[352595241,1739185854889,-500.0,0.0001178,2]
[352595242,1739185854899,-500.0,0.0001178,2]
[352595243,1739185854907,-500.0,0.0001178,2]
[352595244,1739185854916,-622.69,0.0001178,2]
[352595245,1739185854926,-500.0,0.0001178,2]
[352595246,1739185854935,-597.8535654,0.0001178,2]
[352595247,1739185854944,-651.86,0.0001178,2]
[352595248,1739185854954,-500.0,0.0001178,2]
[352595249,1739185854962,-500.0,0.0001178,2]
[352595250,1739185854972,-500.0,0.0001178,2]
[352595251,1739185854981,-500.0,0.0001178,2]
[352595252,1739185854990,-500.0,0.0001178,2]
[352595253,1739185855000,-500.0,0.0001178,2]
[352595254,1739185855014,-943.96,0.0001178,2]
[352595255,1739185855024,-272.38748574,0.0001178,2]
[352595256,1739185855032,-500.0,0.0001178,2]
[352595257,1739185855041,-500.0,0.0001178,2]
[352595258,1739185855051,-520.60028929,0.0001178,2]
[352595259,1739185855060,-500.0,0.0001178,2]
[352595260,1739185855069,-500.0,0.0001178,2]
[352595261,1739185855079,-500.0,0.0001178,2]
[352595262,1739185855088,-3719.71,0.0001178,2]
[352595263,1739185855097,-500.0,0.0001178,2]
[352595264,1739185855106,-7203.65,0.0001178,2]
[352595265,1739185855115,-1632.27,0.0001178,2]
[352595266,1739185855124,-500.0,0.0001178,2]
[352595267,1739185855133,-910.39,0.0001178,2]
[352595268,1739185855142,-622.5433876,0.0001178,2]
[352595269,1739185855151,-870.71,0.0001178,2]
[352595270,1739185855160,-500.0,0.0001178,2]
[352595271,1739185855169,-1859.96,0.0001178,2]
[352595272,1739185855179,-500.0,0.0001178,2]
[352595273,1739185855188,-633.35,0.0001178,2]
[352595274,1739185855198,-500.0,0.0001178,2]
[352595275,1739185855207,-500.0,0.0001178,2]
[352595276,1739185855216,-500.0,0.0001178,2]
[352595277,1739185855225,-596.76,0.0001178,2]
[352595278,1739185855234,-2156.94,0.0001178,2]
[352595279,1739185855243,-1204.72,0.0001178,2]
[352595280,1739185855252,-702.74,0.0001178,2]
[352595281,1739185855261,-500.0,0.0001178,2]
[352595282,1739185855271,-1606.0,0.0001178,2]
[352595283,1739185855280,-3587.43,0.0001178,2]
[352595284,1739185855289,-851.67,0.0001178,2]
[352595285,1739185855298,-7968.06,0.0001178,2]
[352595286,1739185855307,-625.76,0.0001178,2]
[352595287,1739185855316,-20256.1,0.0001178,2]
[352595288,1739185855328,-628.55,0.0001178,2]
[352595289,1739185855338,-500.0,0.0001178,2]
[352595290,1739185855347,-549.82,0.0001178,2]
[352595291,1739185855357,-863.77,0.0001178,2]
[352595292,1739185855367,-500.0,0.0001178,2]
[352595293,1739185855376,-1590.18,0.0001178,2]
[352595294,1739185855385,-500.0,0.0001178,2]
[352595295,1739185855394,-500.0,0.0001178,2]
[352595296,1739185855404,-500.0,0.0001178,2]
[352595297,1739185855413,-859.37,0.0001178,2]
[352595298,1739185855424,-1324.23,0.0001178,2]
[352595299,1739185855433,-500.0,0.0001178,2]
[352595300,1739185855442,-640.35,0.0001178,2]
[352595301,1739185855452,-500.0,0.0001178,2]
[352595302,1739185855461,-500.0,0.0001178,2]
[352595303,1739185855470,-500.0,0.0001178,2]
[352595304,1739185855480,-823.04,0.0001178,2]
[352595305,1739185855489,-500.0,0.0001178,2]
[352595306,1739185855498,-500.0,0.0001178,2]
[352595307,1739185855507,-543.76,0.0001178,2]
[352595308,1739185855517,-294.42050055,0.0001178,2]
[352595309,1739185855526,-774.45,0.0001178,2]
[352595310,1739185855535,-500.0,0.0001178,2]
[352595311,1739185855545,-986.58,0.0001178,2]
[352595312,1739185855554,-500.0,0.0001178,2]
[352595313,1739185855569,-500.0,0.0001178,2]
[352595314,1739185855579,-500.0,0.0001178,2]
[352595315,1739185855589,-500.0,0.0001178,2]
[352595316,1739185855598,-1626.49,0.0001178,2]
[352595317,1739185855608,-761.33,0.0001178,2]
[352595318,1739185855617,-500.0,0.0001178,2]
[352595319,1739185855626,-2142.2,0.0001178,2]
[352595320,1739185855635,-583.3,0.0001178,2]
[352595321,1739185855645,-811.42,0.0001178,2]
[352595322,1739185855654,-500.0,0.0001178,2]
[352595323,1739185855664,-500.0,0.0001178,2]
[352595324,1739185855673,-755.35012409,0.00011792,2]
[352595325,1739185855682,-755.35012409,0.00011892,2]
[352595326,1739185855692,-500.0,0.00011917,2]
[352595327,1739185855701,-500.0,0.00011917,2]
[352595328,1739185855710,-445.12929551,0.00011917,2]
[352595329,1739185855719,-500.0,0.00011917,2]
[352595330,1739185855729,-500.0,0.00011917,2]
[352595331,1739185855739,-500.0,0.00011917,2]
[352595332,1739185855748,-500.0,0.00011917,2]
[352595333,1739185855757,-500.0,0.00011917,2]
[352595334,1739185855766,-500.0,0.00011917,2]
[352595335,1739185855775,-758.83,0.00011917,2]
[352595336,1739185855785,-584.02,0.00011917,2]
[352595337,1739185855794,-500.0,0.00011917,2]
[352595338,1739185855803,-500.0,0.00011917,2]
[352595339,1739185855812,-500.0,0.00011917,2]
[352595340,1739185855821,-500.0,0.00011917,2]
[352595341,1739185855830,-572.79,0.00011917,2]
[352595342,1739185855839,-500.0,0.00011917,2]
[352595343,1739185855848,-500.0,0.00011917,2]
[352595344,1739185855857,-500.0,0.00011917,2]
[352595345,1739185855866,-500.0,0.00011917,2]
[352595346,1739185855875,-500.0,0.00011917,2]
[352595347,1739185855885,-500.0,0.00011917,2]
[352595348,1739185855894,-500.0,0.00011917,2]
[352595349,1739185855903,-622.69,0.00011917,2]
[352595350,1739185855912,-500.0,0.00011917,2]
[352595351,1739185855921,-651.86,0.00011917,2]
[352595352,1739185855930,-500.0,0.00011917,2]
[352595353,1739185855940,-151.0,0.00011917,2]
[352595354,1739185855948,-205.37117131,0.00011917,2]
[352595355,1739185855958,-500.0,0.00011917,2]
[352595356,1739185855967,-500.0,0.00011917,2]
[352595357,1739185855976,-202.158792,0.00011917,2]
[352595358,1739185855986,-202.158792,0.00011917,2]
[352595359,1739185855996,-151.602746,0.00011917,2]
[352595360,1739185856005,-151.0,0.00011917,2]
[352595361,1739185856015,-500.0,0.00011917,2]
[352595362,1739185856025,-500.0,0.00011917,2]
[352595363,1739185856034,-943.96,0.00011917,2]
[352595364,1739185856043,-327.31765265,0.00011917,2]
[352595365,1739185856053,-500.0,0.00011917,2]
[352595366,1739185856064,-500.0,0.00011917,2]
[352595367,1739185856073,-500.0,0.00011917,2]
[352595368,1739185856082,-500.0,0.00011917,2]
[352595369,1739185856093,-3719.71,0.00011917,2]
[352595370,1739185856102,-271.62092571,0.00011917,2]
[352595371,1739185856111,-7203.65,0.00011917,2]
[352595372,1739185856120,-1632.27,0.00011917,2]
[352595373,1739185856130,-500.0,0.00011917,2]
[352595374,1739185856139,-910.39,0.00011917,2]
[352595375,1739185856148,-870.71,0.00011917,2]
[352595376,1739185856157,-500.0,0.00011917,2]
[352595377,1739185856167,-151.0,0.00011917,2]
[352595378,1739185856176,-1859.96,0.00011917,2]
[352595379,1739185856185,-500.0,0.00011917,2]
[352595380,1739185856194,-151.0,0.00011917,2]
[352595381,1739185856204,-633.35,0.00011917,2]
[352595382,1739185856214,-500.0,0.00011917,2]
[352595383,1739185856224,-500.0,0.00011917,2]
[352595384,1739185856234,-596.76,0.00011917,2]
[352595385,1739185856244,-2156.94,0.00011917,2]
[352595386,1739185856253,-151.0,0.00011917,2]
[352595387,1739185856262,-1204.72,0.00011917,2]
[352595388,1739185856271,-702.74,0.00011917,2]
[352595389,1739185856281,-500.0,0.00011917,2]
[352595390,1739185856291,-1606.0,0.00011917,2]
[352595391,1739185856300,-3587.43,0.00011917,2]
[352595392,1739185856309,-851.67,0.00011917,2]
[352595393,1739185856318,-7968.06,0.00011917,2]
[352595394,1739185856329,-625.76,0.00011917,2]
[352595395,1739185856339,-20256.1,0.00011917,2]
[352595396,1739185856351,-628.55,0.00011917,2]
[352595397,1739185856360,-549.82,0.00011917,2]
[352595398,1739185856370,-500.0,0.00011917,2]
[352595399,1739185856380,-863.77,0.00011917,2]
[352595400,1739185856389,-500.0,0.00011917,2]
[352595401,1739185856399,-1590.18,0.00011917,2]
[352595402,1739185856408,-500.0,0.00011917,2]
[352595403,1739185856419,-500.0,0.00011917,2]
[352595404,1739185856429,-500.0,0.00011917,2]
[352595405,1739185856438,-859.37,0.00011917,2]
[352595406,1739185856447,-1324.23,0.00011917,2]
[352595407,1739185856456,-151.0,0.00011917,2]
[352595408,1739185856465,-500.0,0.00011917,2]
[352595409,1739185856474,-640.35,0.00011917,2]
[352595410,1739185856483,-500.0,0.00011917,2]
[352595411,1739185856493,-500.0,0.00011917,2]
[352595412,1739185856502,-500.0,0.00011917,2]
[352595413,1739185856511,-823.04,0.00011917,2]
[352595414,1739185856521,-500.0,0.00011917,2]
[352595415,1739185856530,-500.0,0.00011917,2]
[352595416,1739185856539,-543.76,0.00011917,2]
[352595417,1739185856548,-774.45,0.00011917,2]
[352595418,1739185856558,-500.0,0.00011917,2]
[352595419,1739185856568,-986.58,0.00011917,2]
[352595420,1739185856577,-500.0,0.00011917,2]
[352595421,1739185856586,-500.0,0.00011917,2]
[352595422,1739185856595,-500.0,0.00011917,2]
[352595423,1739185856605,-500.0,0.00011917,2]
[352595424,1739185856614,-1626.49,0.00011917,2]
[352595425,1739185856623,-761.33,0.00011917,2]
[352595426,1739185856632,-500.0,0.00011917,2]
[352595427,1739185856641,-2142.2,0.00011917,2]
[352595428,1739185856651,-151.0,0.00011917,2]
[352595429,1739185856661,-583.3,0.00011917,2]
[352595430,1739185856670,-811.42,0.00011917,2]
[352595431,1739185856679,-500.0,0.00011917,2]
[352595432,1739185856688,-151.0,0.00011917,2]
[352595433,1739185856698,-500.0,0.00011917,2]
[352595434,1739185856707,-1000.0,0.00011938,2]
[352595435,1739185856716,-504.93731554,0.00011938,2]
[352595436,1739185856725,-500.0,0.00011938,2]
[352595437,1739185856735,-151.0,0.00011938,2]
[352595438,1739185856744,-207.467148,0.00011938,2]
[352595439,1739185856753,-207.467148,0.00011938,2]
[352595440,1739185856762,-151.0,0.00011938,2]
[352595441,1739185856771,-151.0,0.00011938,2]
[352595442,1739185856780,-151.0,0.00011938,2]
[352595443,1739185856790,-1000.0,0.00011938,2]
[352595444,1739185856799,-502.27251224,0.00011938,2]
[352595445,1739185856809,-1000.59239481,0.00011938,2]
[352595446,1739185856819,-284.61722054,0.00011954,2]
[352595447,1739185856828,-420.0,0.00011973,2]
[352595448,1739185856838,-755.35012409,0.00011992,2]
[352595449,1739185856847,-500.0,0.00012054,2]
[352595450,1739185856856,-500.0,0.00012054,2]
[352595451,1739185856865,-500.0,0.00012054,2]
[352595452,1739185856874,-500.0,0.00012054,2]
[352595453,1739185856884,-500.0,0.00012054,2]
[352595454,1739185856893,-500.0,0.00012054,2]
[352595455,1739185856902,-500.0,0.00012054,2]
[352595456,1739185856911,-500.0,0.00012054,2]
[352595457,1739185856921,-758.83,0.00012054,2]
[352595458,1739185856930,-584.02,0.00012054,2]
[352595459,1739185856940,-500.0,0.00012054,2]
[352595460,1739185856949,-500.0,0.00012054,2]
[352595461,1739185856958,-500.0,0.00012054,2]
[352595462,1739185856967,-572.79,0.00012054,2]
[352595463,1739185856976,-500.0,0.00012054,2]
[352595464,1739185856986,-500.0,0.00012054,2]
[352595465,1739185856996,-500.0,0.00012054,2]
[352595466,1739185857005,-500.0,0.00012054,2]
[352595467,1739185857014,-500.0,0.00012054,2]
[352595468,1739185857023,-500.0,0.00012054,2]
[352595469,1739185857032,-500.0,0.00012054,2]
[352595470,1739185857042,-622.69,0.00012054,2]
[352595471,1739185857051,-168.66317829,0.00012054,2]
[352595472,1739185857060,-651.86,0.00012054,2]
[352595473,1739185857069,-500.0,0.00012054,2]
[352595474,1739185857078,-500.0,0.00012054,2]
[352595475,1739185857087,-500.0,0.00012054,2]
[352595476,1739185857096,-151.0,0.00012054,2]
[352595477,1739185857105,-500.0,0.00012054,2]
[352595478,1739185857114,-500.0,0.00012054,2]
[352595479,1739185857124,-943.96,0.00012054,2]
[352595480,1739185857133,-500.0,0.00012054,2]
[352595481,1739185857143,-151.0,0.00012054,2]
[352595482,1739185857152,-500.0,0.00012054,2]
[352595483,1739185857161,-500.0,0.00012054,2]